Cogmind - Beta 16 --- EXPLORER MODE // 2025.11.27 @ 10:34:08 Player: K.K.Y. Result: Destroyed by as-82689 with Assembled Blade Performance ------------- Evolutions (0) 0 Regions Visited (4) 800 Robots Destroyed (25) 125 Value Destroyed (603) 603 Prototype IDs (0) 0 Alien Tech Used (0) 0 Bonus (0) 0 TOTAL SCORE: 1528 Bonus ------- None Cogmind --------- Core Integrity 0/250 Matter 300/300 Energy 125/125 System Corruption 11% Temperature Cool (0) Movement Treading (240) Ox1 Location -9/Mines Parts ------- > --- POWER (1) -------- Light Ion Engine > --- PROPULSION (2) --- Light Treads > --- UTILITY (3) ------ Large Storage Unit Launcher Guidance Computer Target Analyzer > --- WEAPON (2) ------- Heavy EM Pulse Gun > --- INVENTORY (15) --- Light Treads Light Treads Combat Airjet Combat Airjet Humpback Launcher Guidance Computer Makeshift Transmission Jammer Makeshift Transmission Jammer Improved Light Armor Plating Shock Absorption System Makeshift Sword Peak State ------------ > --- POWER ------------ Micro Nuclear Core > --- PROPULSION ------- Light Treads Light Treads > --- UTILITY ---------- Large Storage Unit Structural Scanner > --- WEAPON ----------- Shock Rifle Shock Rifle > --- INVENTORY -------- Light Treads Light Treads Humpback Target Analyzer Makeshift Transmission Jammer Makeshift Transmission Jammer Heavy EM Pulse Gun Makeshift Sword [Rating: 16] Favorites ----------- Power Ion Engine Engine Ion Engine Power Core Micro Nuclear Core Propulsion Light Treads Treads Light Treads Utility Structural Scanner Device Structural Scanner Storage Large Storage Unit Processor Target Analyzer Weapon Heavy EM Pulse Gun Energy Gun Heavy EM Pulse Gun Ballistic Gun Assault Rifle Special Weapon Mining Laser Build | -11 -10 -10 -10 -9 ------- Run | Yrd Mat Min Exi Min Slots Evolved 1 | . 1 . . . Power . | . . . . . Propulsion . | . . . . . Utility 1 | . 1 . . . Weapon . | . . . . . Parts Attached 17 | 7 3 . 4 3 Power 3 | 1 . . 1 1 Engine 2 | 1 . . . 1 Core 1 | . . . 1 . Reactor . | . . . . . Propulsion 2 | 2 . . . . Treads 2 | 2 . . . . Leg . | . . . . . Wheel . | . . . . . Hover . | . . . . . Flight . | . . . . . Utility 5 | 2 1 . . 2 Device 1 | 1 . . . . Storage 2 | 1 1 . . . Processor 2 | . . . . 2 Hackware . | . . . . . Protection . | . . . . . Artifact . | . . . . . Weapon 7 | 2 2 . 3 . Energy Gun 4 | . 2 . 2 . Energy Cannon . | . . . . . Ballistic Gun 2 | 2 . . . . Ballistic Cannon . | . . . . . Launcher . | . . . . . Special Weapon 1 | . . . 1 . Impact Weapon . | . . . . . Slashing Weapon . | . . . . . Piercing Weapon . | . . . . . Special Melee Weapon . | . . . . . Unidentified Prototypes . | . . . . . Corrupted Parts 3 | . . . 2 1 System Corruption 4 | . . . 3 1 Parts Lost 8 | . . . 3 5 Power 2 | . . . 1 1 Propulsion 1 | . . . . 1 Utility 1 | . . . . 1 Weapon 4 | . . . 2 2 Highest Loss Streak 5 | . . . 3 5 To Critical Strikes . | . . . . . Average Backups 4 | . 2 3 5 9 Power . | . . . . . Propulsion 1 | . 1 2 2 2 Utility 1 | . . . 1 4 Weapon 1 | . . 1 1 1 Tool/Special . | . . . . . Unused Backups 14 | 1 2 . . 11 Power 1 | . 1 . . . Propulsion 4 | . . . . 4 Utility 7 | . 1 . . 6 Weapon 2 | 1 . . . 1 Tool/Special . | . . . . . Average Slot Usage (%) 84 | . 86 87 85 71 Engine 10 | . 12 12 10 1 Treads 24 | . 25 25 25 17 Device 11 | . 12 12 12 5 Storage 12 | . 12 12 12 12 Processor 1 | . . . . 11 Energy Gun 23 | . 22 25 24 17 Peak Build Rating 16 | 7 10 9 16 16 Average Rating 9 | 4 8 9 10 14 On Entrance 8 | . 7 9 9 16 Avg Prop Armor Cover (%) . | . . . . . Naked Turns . | . . . . . Heaviest Build 33 | 20 32 32 33 33 Greatest Support 40 | 40 40 40 40 40 Greatest Overweight (x) 6 | 6 . . . 1 Average Overweight (x) . | . . . . . Largest Inventory Capacity 15 | 10 15 15 15 15 Average Capacity 14 | 8 13 15 15 15 Most Carried 13 | 5 4 3 9 13 Average Carried 4 | . 2 3 6 10 Final Capacity 15 | 10 15 15 15 15 Final Carried 12 | . 3 3 9 12 Class Distribution -------------------- 100% | Hacker-Mutant Dominant Class ---------------- Hacker-Mutant | -10/Materials Hacker-Mutant | -10/Mines Hacker-Mutant | -10/Exiles Hacker-Mutant | -9/Mines Resources | -11 -10 -10 -10 -9 ----------- Run | Yrd Mat Min Exi Min Matter Collected 473 | 206 137 6 61 63 Remotely . | . . . . . Salvage Created 986 | . 527 229 125 105 Parts 61 | . 34 13 8 6 Haulers Intercepted 2 | . 2 . . . Recyclers Shooed . | . . . . . Parts Field Recycled . | . . . . . Retrieved Matter . | . . . . . Parts Self-Destructed . | . . . . . Prevented . | . . . . . Parts Restored . | . . . . . Kills | -11 -10 -10 -10 -9 ------- Run | Yrd Mat Min Exi Min Combat Hostiles Destroyed 20 | . 11 6 . 3 Guns 19 | . 11 6 . 2 AOE 1 | . . . . 1 Classes Destroyed 7 | . 4 . 1 2 Hauler 2 | . 2 . . . Watcher 3 | . 3 . . . Swarmer 8 | . 6 2 . . Grunt 9 | . 5 4 . . Demolisher 2 | . . . . 2 Hunter 1 | . . . 1 . Assembled 1 | . . . . 1 Best Kill Streak 3 | . 3 2 . 2 Combat Bots Only 2 | . 2 2 . 2 Max Kills in Single Turn 2 | . 2 1 1 1 Gunslinging 1 | . 1 . . . Exploded 1 | . . . . 1 Melee . | . . . . . Uniques/NPCs Destroyed . | . . . . . Combat | -11 -10 -10 -10 -9 -------- Run | Yrd Mat Min Exi Min Hostile Shots Fired 58 | . 28 11 . 19 Missed 25 | . 13 4 . 8 Hits 33 | . 15 7 . 11 Melee 1 | . . . . 1 Projectile 32 | . 15 7 . 10 AOE 15 | . . . . 15 Critical Strikes 1 | . . 1 . . Damage Taken 966 | . 90 64 390 422 Core 264 | . 16 6 162 80 Absorbed by Shields . | . . . . . Ignored by Resistances 345 | . 60 41 . 244 Core Remaining (%) 100 | 100 . . . . Volleys Fired 69 | . 20 8 34 7 Largest 2 | . 2 2 2 2 Hottest 100 | . 90 90 100 100 Shots Fired 128 | . 41 16 62 9 Gun 122 | . 41 16 56 9 Cannon . | . . . . . Launcher . | . . . . . Special 6 | . . . 6 . Kinetic 2 | . 2 . . . Thermal 6 | . . . 6 . Explosive . | . . . . . Electromagnetic 120 | . 39 16 56 9 Robot Hit Streak 40 | . 32 40 15 13 Robot Miss Streak 1 | . 1 1 1 . Penetration Max . | . . . . . Secondary Targets 3 | . 3 . . . Max Gunslinging Chain 1 | . 1 . . . Shots Hit Robots 85 | . 34 12 31 8 Core Hits 40 | . 17 8 9 6 Critical Kills . | . . . . . Critical Parts Destroyed . | . . . . . Critical Strikes 1 | . 1 . . . Corrupt 1 | . 1 . . . Melee Attacks . | . . . . . Impact . | . . . . . Slashing . | . . . . . Piercing . | . . . . . Sneak Attacks . | . . . . . Combat Hostiles . | . . . . . Follow-up Attacks . | . . . . . Damage Inflicted 1143 | . 618 180 125 220 Guns 1024 | . 612 180 125 107 Cannons . | . . . . . Explosions 113 | . . . . 113 Melee . | . . . . . Ramming 6 | . 6 . . . Kinetic 20 | . 20 . . . Thermal 113 | . . . . 113 Explosive . | . . . . . Electromagnetic 1004 | . 592 180 125 107 Impact . | . . . . . Slashing . | . . . . . Piercing . | . . . . . Highest Corruption 11 | . 2 2 10 11 Average Corruption 3 | . 1 2 3 10 Corruption Purged . | . . . . . Corruption Blocked . | . . . . . Effects 72 | . 16 11 29 16 Message Errors 17 | . 3 7 4 3 Matter Fused 18 | . 6 1 6 5 Heat Flow Errors 8 | . 2 . 5 1 Energy Discharges 6 | . 1 1 2 2 Parts Fused 1 | . 1 . . . Data Loss (minor) 10 | . 2 1 4 3 Data Loss (major) 5 | . . 1 3 1 Misfires 4 | . 1 . 2 1 Alerts 1 | . . . 1 . Weapon Failures 2 | . . . 2 . Overload Shots . | . . . . . Overflow Damage 2 | . . . . 2 Projectiles . | . . . . . Explosions 2 | . . . . 2 Melee . | . . . . . Knockbacks . | . . . . . Impact . | . . . . . Kinetic . | . . . . . Secondary . | . . . . . Self-Inflicted Damage . | . . . . . Shots . | . . . . . Rammed 3 | . 3 . . . Targets Rammed 3 | . 3 . . . Kicked . | . . . . . Crushed . | . . . . . Highest Temperature 405 | . 228 171 405 195 Average Temperature 88 | . 71 61 105 56 Received Heat Transfer 132 | . 57 75 . . Effects 2 | . . . 2 . Shutdowns 1 | . . . 1 . Interference 1 | . . . 1 . Siege Activations . | . . . . . Martial Activations . | . . . . . Shielding Activations . | . . . . . Robots Disrupted . | . . . . . Combat Hostiles . | . . . . . Robots Corrupted . | . . . . . Combat Hostiles . | . . . . . Parts Fried 4 | . 2 . 2 . Impact Corruptions . | . . . . . Robots Melted . | . . . . . Combat Hostiles . | . . . . . Parts Melted . | . . . . . Heat Transferred 100 | . . . . 100 Parts Sabotaged . | . . . . . Parts Stolen . | . . . . . Parts Stripped . | . . . . . Power Chain Reactions 1 | . . . . 1 Alert | -11 -10 -10 -10 -9 ------- Run | Yrd Mat Min Exi Min Maximum Alert Level . | . . . . . Low Security (%) 100 | 100 100 100 . 100 Level 1 . | . . . . . Level 2 . | . . . . . Level 3 . | . . . . . Level 4 . | . . . . . Level 5 . | . . . . . High Security . | . . . . . Max Security . | . . . . . Peak Influence 72 | . 72 51 . 41 Initial . | . . . . . Average 8 | . 12 5 . 4 Influence Increases 531 | . 314 156 5 56 Destroy 0b10 Robot/C 380 | . 220 120 . 40 Destroy 0b10 Robot/NC 30 | . 25 . 5 . Destroy Leader 90 | . 50 30 . 10 Allied During Kill 2 | . . 2 . . Disable Machine 8 | . 4 4 . . Destroy Structure 6 | . . . . 6 Lose Combat Pursuer 15 | . 15 . . . Influence Decreases 531 | . 314 156 5 56 Time Decay 531 | . 314 156 5 56 Squads Dispatched . | . . . . . Investigation . | . . . . . Extermination . | . . . . . Reinforcement . | . . . . . Assault . | . . . . . Garrison . | . . . . . Intercept . | . . . . . Searches Triggered . | . . . . . Construction Impeded . | . . . . . Haulers Reinforced . | . . . . . Active Scanning Responses . | . . . . . Cargo Convoy Interrupts . | . . . . . Stealth | -11 -10 -10 -10 -9 --------- Run | Yrd Mat Min Exi Min Distress Signals 3 | . 1 . . 2 Communications Jammed . | . . . . . Distress Signals . | . . . . . Times Spotted 28 | . 18 5 . 5 Peak Tracking Total 3 | . 3 2 . 2 Tactical Retreats 1 | . 1 . . . Traps | -11 -10 -10 -10 -9 ------- Run | Yrd Mat Min Exi Min Traps Triggered 4 | . 4 . . . Indirectly . | . . . . . Trap Hack Attempts . | . . . . . Triggered . | . . . . . Disarmed . | . . . . . Reprogrammed . | . . . . . Reused . | . . . . . Traps Extracted . | . . . . . Installed . | . . . . . Triggered . | . . . . . Machines | -11 -10 -10 -10 -9 ---------- Run | Yrd Mat Min Exi Min Machines Disabled 7 | . 1 1 5 . Max in Single Turn 1 | . 1 1 1 . Machines Repaired . | . . . . . Machines Dismantled . | . . . . . Machines Sabotaged . | . . . . . Overloaded Fab Kills . | . . . . . Hacking | -11 -10 -10 -10 -9 --------- Run | Yrd Mat Min Exi Min Machines Accessed . | . . . . . Terminals . | . . . . . Fabricators . | . . . . . Repair Stations . | . . . . . Recycling Units . | . . . . . Scanalyzers . | . . . . . Garrison Access . | . . . . . Total Hacks . | . . . . . Successful . | . . . . . Failed . | . . . . . Catastrophic . | . . . . . Database Lockouts . | . . . . . Manual . | . . . . . Terminals . | . . . . . Fabricators . | . . . . . Repair Stations . | . . . . . Recycling Units . | . . . . . Scanalyzers . | . . . . . Garrison Access . | . . . . . Terminal Hacks . | . . . . . Fabricator Hacks . | . . . . . Repair Station Hacks . | . . . . . Recycling Unit Hacks . | . . . . . Scanalyzer . | . . . . . Garrison Access Hacks . | . . . . . Unauthorized Hacks . | . . . . . Terminals . | . . . . . Fabricators . | . . . . . Repair Stations . | . . . . . Recycling Units . | . . . . . Scanalyzers . | . . . . . Garrison Access . | . . . . . Data Cores Recovered . | . . . . . Used . | . . . . . Hacking Detections . | . . . . . Full Trace Events . | . . . . . Feedback Events . | . . . . . Feedback Blocked . | . . . . . Robot Schematics Acquired . | . . . . . Robots Built . | . . . . . Authchips . | . . . . . Time . | . . . . . Total Robot Build Rating . | . . . . . Part Schematics Acquired . | . . . . . Parts Built . | . . . . . Authchips . | . . . . . Time . | . . . . . Total Part Build Rating . | . . . . . Part Studies Acquired . | . . . . . Parts Repaired . | . . . . . Time . | . . . . . Parts Recycled . | . . . . . Recycled Matter . | . . . . . Retrieved Matter . | . . . . . Retrieved Components . | . . . . . Parts Scanalyzed . | . . . . . Part Schematics Acquired . | . . . . . Parts Damaged . | . . . . . Bothacking | -11 -10 -10 -10 -9 ------------ Run | Yrd Mat Min Exi Min Used RIF Installer . | . . . . . Robots Hacked . | . . . . . Non-combat . | . . . . . Combat . | . . . . . Robot Hacks Applied . | . . . . . Relay Couplers Released . | . . . . . Fabnet Peak Effective % . | . . . . . Robots Rewired 2 | . . . 2 . Allies Hacked . | . . . . . Hacks Repelled . | . . . . . Allies | -11 -10 -10 -10 -9 -------- Run | Yrd Mat Min Exi Min Total Allies 4 | . . 2 2 . Largest Group 2 | . . 2 2 . Highest-Rated Group 45 | . . 45 45 . Highest-Rated Ally 31 | . . 31 31 . Total Orders . | . . . . . Ally Attacks 4 | . . 4 . . Total Damage 34 | . . 34 . . Kills . | . . . . . Allies Corrupted 1 | . . . 1 . Allies Melted . | . . . . . Intel | -11 -10 -10 -10 -9 ------- Run | Yrd Mat Min Exi Min Active Infowar (turns) 2879 | 63 1047 870 899 . Structural 2879 | 63 1047 870 899 . Robot Analysis Total . | . . . . . Derelict Logs Recovered . | . . . . . Drone Launches . | . . . . . Drone Recoveries . | . . . . . Exploration | -11 -10 -10 -10 -9 ------------- Run | Yrd Mat Min Exi Min Turns Passed 3971 | 82 1047 870 1617 355 Spaces Moved 2248 | 48 588 516 928 168 Core 27 | 27 . . . . Treads 2221 | 21 588 516 928 168 Legs . | . . . . . Wheels . | . . . . . Hover . | . . . . . Flight . | . . . . . Fastest Speed 50 | 50 160 160 160 160 Average Speed 162 | 141 160 160 160 195 Slowest Speed 350 | 350 160 160 160 240 Overloaded Moves . | . . . . . Propulsion Burnouts . | . . . . . Robots Hopped . | . . . . . Potential Cave-ins 5 | . . . 5 . Cave-ins Triggered 2 | . . . 2 . Exploration Rate (%) 64 | 4 87 98 92 40 Regions Visited 4 Branch Regions 3 Pre-discovered Areas . | . . . . . Known Exits Taken 4 | 1 1 1 1 . Unknown Exits Taken . | . . . . . Scrap Searched 1 | . . 1 . . Spaces Dug 5 | . . . 5 . Terrain Destroyed 11 | . . . 5 6 Melee . | . . . . . Projectile 5 | . . . 5 . AOE 6 | . . . . 6 Terrain Rammed . | . . . . . Walls Destroyed . | . . . . . Machines Disabled . | . . . . . Actions | -11 -10 -10 -10 -9 --------- Run | Yrd Mat Min Exi Min Total 2438 | 62 657 545 986 188 Wait 52 | . 28 22 . 2 Move 2242 | 47 587 515 925 168 Hop . | . . . . . Pick Up 30 | 7 8 . 8 7 Fast Attach 1 | 1 . . . . Attach 16 | 6 3 . 3 4 Detach 3 | . 3 . . . Swap 1 | . . . 1 . Drop 6 | 1 5 . . . Fire 69 | . 20 8 34 7 Melee . | . . . . . Ram . | . . . . . Kick . | . . . . . Crush 3 | . 3 . . . Escape Stasis 2 | . . . 2 . Rewire 13 | . . . 13 . Trap . | . . . . . Miscellaneous . | . . . . . Route ------- -11/Scrapyard -10/Materials (discovered 6 exits: *Mat x3 / *Min x2 / Sub) -10/Mines (discovered 4 exits: *Mat x2 / *Exi / Sub) -10/Exiles (discovered 2 exits: *Min x2) -9/Mines History --------- Turn | Location | Event 10 | -11/Scrapyard | Identified exit to Materials 10 | -11/Scrapyard | Discovered exit to Materials (range 15) 83 | -11/Scrapyard | Entered Materials 83 | -10/Materials | Evolved 1 slot: Utility x1 289 | -10/Materials | Identified exit to Materials 289 | -10/Materials | Discovered exit to Materials (range 12) 300 | -10/Materials | Identified exit to Mines 300 | -10/Materials | Discovered exit to Mines (range 16) 310 | -10/Materials | Build established: Hacker-Mutant 379 | -10/Materials | Identified exit to Subcaves 379 | -10/Materials | Discovered exit to Subcaves (range 10) 539 | -10/Materials | Discovered exit to Materials (range 5) 1090 | -10/Materials | Discovered exit to Materials (range 13) 1106 | -10/Materials | Discovered exit to Mines (range 15) 1130 | -10/Materials | Entered Mines 1141 | -10/Mines | Met a Derelict bent on vengeance 1279 | -10/Mines | Discovered exit to Materials (range 6) 1352 | -10/Mines | Discovered exit to Subcaves (range 12) 1641 | -10/Mines | Discovered exit to Materials (range 7) 1977 | -10/Mines | Deemed a non-threat by the Exiles lab entrance 1977 | -10/Mines | Identified exit to Exiles 1977 | -10/Mines | Discovered exit to Exiles (range 5) 2000 | -10/Mines | Entered Exiles 2000 | -10/Exiles | Found Exiles lab destroyed 2000 | -10/Exiles | Accompanied by 2 allies 2030 | -10/Exiles | Led the pair of lost Derelicts to a safe place 2604 | -10/Exiles | Identified exit to Mines 2604 | -10/Exiles | Discovered exit to Mines (range 14) 3069 | -10/Exiles | Discovered exit to Mines (range 10) 3357 | -10/Exiles | Crushed by falling debris 3358 | -10/Exiles | Core integrity fell below 50% 3358 | -10/Exiles | Crushed by falling debris 3388 | -10/Exiles | Lost 3 parts (1p2w) 3455 | -10/Exiles | System corruption reached 10% 3617 | -10/Exiles | Entered Mines 3740 | -9/Mines | Assembled infested the area 3745 | -9/Mines | Assisted by a Guerilla fighting off Assembled 3762 | -9/Mines | Received a Rocket Launcher from a helpful Derelict 3768 | -9/Mines | Core integrity fell below 20% 3802 | -9/Mines | Lost 5 parts (1p1n1u2w) 3972 | -9/Mines | Destroyed by as-82689 with Assembled Blade Last Messages --------------- 03845_ U-05 Engineer lays Concrete. 03849_ K-01 Serf collects debris. 03856_ System corrupted: Component data lost. 03856_ K-01 Serf cleans the Core Extractor. 03860_ K-01 Serf collects debris. 03863_ K-01 Serf cleans the Core Extractor. 03867_ K-01 Serf collects debris. 03879_ System corrupted: Matter fused (-9). 03879_ K-01 Serf collects debris. 03901_ K-01 Serf destroyed. 03904_ System corrupted: Heat flow error (+220). 03920_ System corrupted: Energy discharge (-27). 03932_ Acquired Lgt. Ion Engine. 03937_ System corrupted: Component data lost. 03938_ as-39854 destroyed. 03945_ Acquired 18 matter. 03960_ XTVT&>T7RHZ IR#ZV>GT O B|LOW%,UGP 03961_ Acquired 10 matter. 03964_ Extracted 6 matter. 03966_ K-01 Serf destroyed. Map ----- +----------------------------------------------------+ | ??????? ?????????## #### #??????????????????? | | ???????#??????????# #??# #??????????????????? | | ??????????????????# #?## ##?????????????????? | | ??????????????????# ### ##????????????????? | | ?????????????????## ## ##???????????????? | | ????????????????## ##??????????????? | | ????????????????# ##?????????????? | | ????????????????# ##????????????? | | ??????????? #???## ##???????????? | | ??????????? #????## ##??????????? | | ??????????? #?????### #??????????? | | ?????????## #???????## #??????????? | | ???????## #####????## #??????????? | | ??????## ?=%%?????## #??????????? | | ??????# ??#!*??????# ##??????????? | | ??????# ??#! ###???## ##???????????? | | ??????# #??# #????## ####????????????? | | ??????# ???? ##????# #???????????????? | | ??????# ???###%%;#????# #???????????????? | | ?????## #???#;# ;#????# #???????????????? | | ???### #???#; % ;#????# #???????????????? | | ??## ##### ###??# #???????????????? | | ?## #####% #???????????????? | | ?# %= % #???????????????? | | ?# #### ## aa = #???????????????? | | ?# #??## # @# ### #???????????????? | | ?# #??# ## =! # ## #???????????????? | | ?## #??# ## %| #### #???????????????? | | ??## """ #??# ##= ## #???????????????? | | ???## """ #?# ## ## ???????????????? | | ????# """ ##?## # #####???????????????? | | ????# #???# # # #??????????????????? | | ???## #???# # ###??????????????????? | | ???# ##??##### ###????????????????????? | | ???# ####???# #??????????????????????? | | ???## ##?? ??????????????????????? | | ????## #?? ??????????????????????? | | ?????##### #?? ??????????????????????? | | ?????????### ##?? ??????????????????????? | | ???????????####??? ??????????????????????? | | ?????????????????#####??????????????????????? | | ????????????????????????????????????????????? | | ????????????????????????????????????????????? | | ????????????????????????????????????????????? | | ????????????????????????????????????????????? | | | | | | | | | | | +----------------------------------------------------+ Best States ------------- Heat Dissipation 25 Energy Generation 15 Energy Capacity 250 Matter Stores 300 Matter Capacity 300 Sight Range 16 Terrain Scan Density 10 Resistance: KI 35 Resistance: TH 35 Resistance: EX 35 Resistance: EM 35 Resistance: I 35 Resistance: S 35 Resistance: P 35 Evasion (%) 50 Launcher Accuracy 20 Target Analysis 5 Recoil Reduction 2 Offensive Hacking 20 Item Schematics ----------------- None Robot Schematics ------------------ None Fabricated ------------ Nothing Repaired ---------- Nothing Studied --------- None Alien Tech Used ----------------- None Achievements -------------- None Challenges ------------ None Game ------ Seed LinearFusionTerminator Manual? 0 Play Time 00:14:59 Cumulative 145.8 hours Start 2025.11.27 @ 10:19:57 End 2025.11.27 @ 10:34:08 Sessions 1 Manual Loads 0 Difficulty Explorer Special Mode None Game No. 176 Rogue 0 Adventurer 0 Explorer 176 Win Type - Total 0 Types 0/0/0/0/0/0/0/0/0/0 Lore% 69 Gallery% 66 Achievement% 52 Wizard Run 0 Options --------- Layout 1 ASCII 0 Keyboard 0 Movement Mouse Keybinds 0 Fullscreen 1 Font 24/Smallcaps Map View 50x35 Zoom Use 0% Tactical HUD 1 Map Filters NONE Filters NONE Steam 1 RUN: e63f1401-7fc1-4340-9d45-18d04e55fc9c